fUSD/lending_fUSD_20250405
["ID","MTS","AMOUNT","RATE_DAILY","PERIOD"]
[357166771,1743847843734,-500.0,0.00030411,2]
[357166773,1743847843744,-9756.0,0.00030411,2]
[357166775,1743847843754,-2696.0,0.00030411,2]
[357166777,1743847843763,-773.0,0.00030411,2]
[357166779,1743847843773,-750.0,0.00030411,2]
[357166781,1743847843782,-778.0,0.00030411,2]
[357166783,1743847843791,-810.0,0.00030411,2]
[357166784,1743847843800,-151.0,0.00030411,7]
[357166785,1743847843809,-151.0,0.00030411,7]
[357166786,1743847843818,-151.0,0.00030411,7]
[357166787,1743847843828,-174.227254,0.00030411,7]
[357166788,1743847843837,-174.227254,0.00030411,7]
[357166789,1743847843846,-151.0,0.00030411,7]
[357166790,1743847843855,-273.792234,0.00030428,7]
[357166791,1743847843864,-16352.1268251,0.00030428,2]
[357166792,1743847843874,-824.0,0.00030438,2]
[357166793,1743847843883,-533.88759019,0.00030438,2]
[357166794,1743847843892,-9756.0,0.00030438,2]
[357166795,1743847843901,-2696.0,0.00030438,2]
[357166796,1743847843911,-773.0,0.00030438,2]
[357166797,1743847843921,-750.0,0.00030438,2]
[357166798,1743847843930,-778.0,0.00030438,2]
[357166799,1743847843939,-810.0,0.00030438,2]
[357166800,1743847843949,-151.0,0.00030445,7]
[357166801,1743847843958,-151.0,0.00030445,7]
[357166802,1743847843967,-824.0,0.00030466,2]
[357166803,1743847843977,-9756.0,0.00030466,2]
[357166804,1743847843986,-2696.0,0.00030466,2]
[357166805,1743847843996,-773.0,0.00030466,2]
[357166806,1743847844005,-750.0,0.00030466,2]
[357166807,1743847844015,-778.0,0.00030466,2]
[357166808,1743847844025,-810.0,0.00030466,2]
[357166809,1743847844035,-622.778856,0.00030493,7]
[357166810,1743847844045,-622.778856,0.00030493,7]
[357166811,1743847844055,-151.0,0.00030493,7]
[357166812,1743847844064,-637.885301,0.00030493,7]
[357166813,1743847844074,-155.01198,0.00030493,7]
[357166814,1743847844084,-637.885301,0.00030493,7]
[357166815,1743847844093,-155.01198,0.00030493,7]
[357166816,1743847844103,-824.0,0.00030493,2]
[357166817,1743847844112,-9756.0,0.00030493,2]
[357166818,1743847844122,-2696.0,0.00030493,2]
[357166819,1743847844131,-773.0,0.00030493,2]
[357166820,1743847844141,-750.0,0.00030493,2]
[357166821,1743847844151,-778.0,0.00030493,2]
[357166822,1743847844161,-810.0,0.00030493,2]
[357166823,1743847844170,-542.125284,0.00030496,7]
[357166824,1743847844179,-542.125284,0.00030496,7]
[357166825,1743847844190,-151.0,0.00030496,7]
[357166826,1743847844200,-151.0,0.00030496,7]
[357166827,1743847844208,-151.0,0.00030496,7]
[357166828,1743847844218,-151.0,0.00030496,7]
[357166829,1743847844227,-151.0,0.00030496,7]
[357166830,1743847844236,-151.0,0.00030496,7]
[357166831,1743847844245,-151.0,0.0003051,7]
[357166832,1743847844255,-151.0,0.0003051,7]
[357166833,1743847844264,-301.053727,0.0003051,7]
[357166834,1743847844274,-248.0813093,0.00030517,2]
[357166835,1743847844283,-843.4272309,0.00030517,2]
[357166836,1743847844292,-824.0,0.00030521,2]
[357166837,1743847844301,-9756.0,0.00030521,2]
[357166838,1743847844310,-2696.0,0.00030521,2]
[357166839,1743847844319,-773.0,0.00030521,2]
[357166840,1743847844328,-750.0,0.00030521,2]
[357166841,1743847844337,-778.0,0.00030521,2]
[357166842,1743847844346,-810.0,0.00030521,2]
[357166843,1743847844355,-1591.3282623,0.00030527,2]
[357166844,1743847844364,-150.0,0.00030537,2]
[357166845,1743847844373,-16352.1268251,0.00030538,2]
[357166846,1743847844382,-824.0,0.00030548,2]
[357166847,1743847844395,-9756.0,0.00030548,2]
[357166848,1743847844405,-2696.0,0.00030548,2]
[357166849,1743847844415,-773.0,0.00030548,2]
[357166850,1743847844424,-750.0,0.00030548,2]
[357166851,1743847844435,-778.0,0.00030548,2]
[357166852,1743847844445,-810.0,0.00030548,2]
[357166853,1743847844454,-151.0,0.00030548,7]
[357166854,1743847844463,-151.0,0.00030548,7]
[357166855,1743847844473,-174.227254,0.00030575,7]
[357166856,1743847844484,-174.227254,0.00030575,7]
[357166857,1743847844493,-151.0,0.00030575,7]
[357166858,1743847844502,-824.0,0.00030575,2]
[357166859,1743847844512,-9756.0,0.00030575,2]
[357166860,1743847844521,-2696.0,0.00030575,2]
[357166861,1743847844531,-773.0,0.00030575,2]
[357166862,1743847844541,-750.0,0.00030575,2]
[357166863,1743847844550,-778.0,0.00030575,2]
[357166864,1743847844561,-810.0,0.00030575,2]
[357166865,1743847844570,-824.0,0.00030603,2]
[357166866,1743847844580,-9756.0,0.00030603,2]
[357166867,1743847844590,-2696.0,0.00030603,2]
[357166868,1743847844599,-773.0,0.00030603,2]
[357166869,1743847844609,-750.0,0.00030603,2]
[357166870,1743847844619,-778.0,0.00030603,2]
[357166871,1743847844629,-810.0,0.00030603,2]
[357166872,1743847844639,-824.0,0.0003063,2]
[357166873,1743847844648,-9756.0,0.0003063,2]
[357166874,1743847844658,-2696.0,0.0003063,2]
[357166875,1743847844667,-773.0,0.0003063,2]
[357166876,1743847844677,-750.0,0.0003063,2]
[357166877,1743847844687,-778.0,0.0003063,2]
[357166878,1743847844697,-810.0,0.0003063,2]
[357166879,1743847844706,-825.99079523,0.00030658,2]
[357166880,1743847844715,-9761.46460236,0.00030658,2]
[357166881,1743847844725,-2712.65349984,0.00030658,2]
[357166882,1743847844735,-774.83197931,0.00030658,2]
[357166883,1743847844745,-750.0,0.00030658,2]
[357166884,1743847844755,-783.13939922,0.00030658,2]
[357166885,1743847844765,-823.81571233,0.00030658,2]
[357166886,1743847844775,-542.125284,0.00030658,7]
[357166887,1743847844784,-542.125284,0.00030658,7]
[357166888,1743847844793,-151.0,0.00030658,7]
[357166889,1743847844803,-151.0,0.00030658,7]
[357166890,1743847844812,-151.0,0.00030658,7]
[357166891,1743847844822,-151.0,0.00030658,7]
[357166892,1743847844831,-188.309543,0.00030658,7]
[357166893,1743847844840,-151.0,0.00030658,7]
[357166894,1743847844850,-301.23697749,0.00030804,2]
[357166895,1743847844859,-250.0,0.00030835,2]
[357166896,1743847844869,-16352.1268251,0.00030898,2]
[357166897,1743847844879,-13979.12962454,0.00030908,2]
[357166898,1743847844888,-300.0,0.00031,2]
[357166899,1743847844897,-500.0,0.00031,2]
[357166900,1743847844906,-1073.14847925,0.0003137,5]
[357166901,1743847844915,-251.0,0.00031375,7]
[357166902,1743847844924,-622.778856,0.00031375,7]
[357166903,1743847844933,-622.778856,0.00031375,7]
[357166904,1743847844943,-151.0,0.00031375,7]
[357166905,1743847844953,-637.885301,0.00031375,7]
[357166906,1743847844963,-637.885301,0.00031375,7]
[357166907,1743847844972,-155.01198,0.00031375,7]
[357166908,1743847844982,-155.01198,0.00031375,7]
[357166909,1743847844991,-2000.0,0.00031408,5]
[357166910,1743847845000,-2088.4,0.00031474,2]
[357166911,1743847845010,-254.72,0.00031507,2]
[357166912,1743847845019,-10580.8622423,0.0003158,2]
[357166913,1743847845028,-150.0,0.00031907,2]
[357166914,1743847845038,-193.61970565,0.000322,2]
[357166915,1743847845047,-258.061628,0.0003247,7]
[357166916,1743847845056,-16352.1268251,0.0003249,2]
[357166917,1743847845066,-30000.0,0.000325,4]
[357166918,1743847845075,-174.227254,0.000325,7]
[357166919,1743847845084,-174.227254,0.000325,7]
[357166920,1743847845094,-151.0,0.000325,7]
[357166921,1743847845103,-16352.1268251,0.00032595,2]
[357166922,1743847845112,-2632.8426731,0.00032605,2]
[357166923,1743847845121,-287.92,0.00032646,2]
[357166924,1743847845130,-737.72,0.00032646,2]
[357166925,1743847845139,-610.335,0.00032737,2]
[357166926,1743847845148,-2578.7879348,0.00032824,2]
[357166927,1743847845158,-13979.12962454,0.00032846,2]
[357166928,1743847845167,-254.72,0.00032877,2]
[357166929,1743847845176,-161.67,0.00032932,120]
[357166930,1743847845185,-542.125284,0.0003298,7]
[357166931,1743847845194,-542.125284,0.0003298,7]
[357166932,1743847845203,-151.0,0.0003298,7]
[357166933,1743847845213,-151.0,0.0003298,7]
[357166934,1743847845222,-151.0,0.0003298,7]
[357166935,1743847845231,-165.160607,0.0003298,7]
[357166936,1743847845240,-151.0,0.0003298,7]
[357166937,1743847845249,-622.778856,0.0003298,7]
[357166938,1743847845259,-622.778856,0.0003298,7]
[357166939,1743847845269,-151.0,0.0003298,7]
[357166940,1743847845279,-637.885301,0.0003298,7]
[357166941,1743847845288,-637.885301,0.0003298,7]
[357166942,1743847845298,-155.01198,0.0003298,7]
[357166943,1743847845307,-155.01198,0.0003298,7]
[357166944,1743847845317,-49056.3804754,0.0003299,2]
[357166945,1743847845326,-86508.11678903,0.00033,2]
[357166946,1743847845336,-550.0,0.00033,2]
[357166947,1743847845345,-151.0,0.00033,7]
[357166948,1743847845355,-151.0,0.00033,7]
[357166949,1743847845365,-174.227254,0.00033,7]
[357166950,1743847845375,-174.227254,0.00033,7]
[357166951,1743847845387,-212.0,0.00033,2]
[357166952,1743847845492,-215.82008528,0.000331,2]
[357166953,1743847845502,-200.0,0.00033151,2]
[357166954,1743847845512,-542.125284,0.00033195,7]
[357166955,1743847845522,-542.125284,0.00033195,7]
[357166956,1743847845532,-1000.0,0.00033209,2]
[357166957,1743847845542,-16352.1268251,0.0003325,2]
[357166958,1743847845551,-10580.8622423,0.0003326,2]
[357166959,1743847845561,-150.0,0.00033277,2]
[357166960,1743847845570,-170.55,0.00033302,2]
[357166961,1743847845579,-154.71952391,0.00033626,2]
[357166962,1743847845589,-2088.4,0.00033738,2]
[357166963,1743847845598,-502.99241054,0.00033787,5]
[357166964,1743847845607,-500.0,0.00033787,5]
[357166965,1743847845616,-500.0,0.00033787,5]
[357166966,1743847845626,-152.0,0.00033899,3]
[357166967,1743847845635,-155.98,0.00034192,2]
[357166968,1743847845645,-150.0,0.00034253,2]
[357166969,1743847845655,-150.0,0.00034253,2]
[357166970,1743847845665,-150.0,0.00034516,2]
[357166971,1743847845674,-150.0,0.00034548,10]
[357166972,1743847845684,-150.0,0.00034627,2]
[357166973,1743847845694,-150.0,0.00034647,2]
[357166974,1743847845703,-9475.64,0.000347,2]
[357166975,1743847845713,-151.0,0.00034784,7]
[357166976,1743847845723,-637.885301,0.00034784,7]
[357166977,1743847845732,-637.885301,0.00034784,7]
[357166978,1743847845742,-155.01198,0.00034784,7]
[357166979,1743847845751,-155.01198,0.00034784,7]
[357166980,1743847845761,-13979.12962454,0.00034784,2]
[357166981,1743847845770,-2052.94188013,0.0003479,30]
[357166982,1743847845780,-3448.43939792,0.000348,2]
[357166983,1743847845789,-150.0,0.00034816,2]
[357166984,1743847845799,-184.71239467,0.00034839,2]
[357166985,1743847845808,-150.0,0.00034851,2]
[357166987,1743847845818,-343.50241068,0.00034876,7]
[357166989,1743847845827,-150.0,0.00034878,2]
[357166991,1743847845837,-150.0,0.00034885,2]
[357166993,1743847845846,-150.0,0.0003489,2]
[357166995,1743847845856,-150.0,0.00034901,2]
[357166997,1743847845866,-150.0,0.0003492,2]
[357166999,1743847845877,-16352.1268251,0.00034931,2]
[357167001,1743847845886,-10580.8622423,0.00034941,2]
[357167003,1743847845896,-150.0,0.00034976,2]
[357167005,1743847845906,-49056.3804754,0.0003499,2]
[357167006,1743847845915,-1000.0,0.00034993,2]
[357167007,1743847845925,-3206.58532021,0.00035,30]
[357167008,1743847845935,-4593.69388493,0.00035,2]
[357167009,1743847845945,-105254.28886207,0.00035,40]
[357167010,1743847845954,-150.0,0.00035,2]
[357167011,1743847845964,-600.0,0.00035,2]
[357167012,1743847845974,-168.09,0.00035,2]
[357167013,1743847845984,-542.125284,0.00035,7]
[357167015,1743847845993,-542.125284,0.00035,7]
[357167017,1743847846002,-151.0,0.00035,7]
[357167018,1743847846011,-265.507778,0.00035,7]
[357167019,1743847846021,-622.778856,0.00035,7]
[357167020,1743847846031,-622.778856,0.00035,7]
[357167021,1743847846041,-174.227254,0.00035,7]
[357167022,1743847846050,-1000.0,0.00035,5]
[357167023,1743847846060,-174.227254,0.00035,7]
[357167024,1743847846069,-2000.0,0.00035,4]
[357167025,1743847846079,-150.0,0.00035007,2]
[357167026,1743847846088,-150.0,0.00035013,2]
[357167027,1743847846097,-150.0,0.00035029,2]
[357167028,1743847846107,-150.0,0.00035052,2]
[357167029,1743847846116,-150.0,0.00035059,2]
[357167030,1743847846126,-150.0,0.00035063,2]
[357167031,1743847846136,-150.0,0.00035077,2]
[357167032,1743847846146,-150.0,0.00035109,2]
[357167033,1743847846155,-977.08652085,0.0003513,7]
[357167034,1743847846165,-977.08652071,0.0003513,7]
[357167035,1743847846175,-150.0,0.00035184,2]
[357167036,1743847846184,-150.0,0.0003519,2]
[357167037,1743847846194,-150.0,0.00035192,2]
[357167038,1743847846203,-16352.1268251,0.00035196,2]
[357167039,1743847846213,-150.0,0.00035201,2]
[357167040,1743847846222,-150.0,0.00035202,2]
[357167041,1743847846231,-150.0,0.00035203,2]
[357167042,1743847846241,-150.0,0.00035206,2]
[357167043,1743847846250,-150.0,0.00035209,2]
[357167044,1743847846259,-150.0,0.00035212,2]
[357167045,1743847846269,-150.0,0.00035233,2]
[357167046,1743847846277,-150.0,0.00035236,2]
[357167047,1743847846287,-150.0,0.00035246,2]
[357167048,1743847846296,-150.0,0.00035254,2]
[357167049,1743847846306,-150.0,0.00035254,2]
[357167050,1743847846315,-150.0,0.00035281,2]
[357167051,1743847846324,-150.0,0.00035305,2]
[357167052,1743847846333,-150.0,0.00035308,2]
[357167053,1743847846342,-150.0,0.00035309,2]
[357167054,1743847846352,-150.0,0.00035311,2]
[357167055,1743847846362,-150.0,0.00035325,2]
[357167056,1743847846371,-150.0,0.00035325,2]
[357167057,1743847846381,-150.0,0.00035372,2]
[357167058,1743847846393,-150.0,0.00035389,2]
[357167059,1743847846403,-150.0,0.00035402,2]
[357167060,1743847846413,-150.0,0.00035426,2]
[357167061,1743847846422,-150.0,0.00035449,2]
[357167062,1743847846432,-504.30719768,0.00035452,5]
[357167063,1743847846442,-150.0,0.00035455,2]
[357167064,1743847846451,-150.0,0.00035473,2]
[357167065,1743847846461,-150.0,0.00035504,2]
[357167066,1743847846471,-150.0,0.0003554,2]
[357167067,1743847846482,-150.0,0.00035541,2]
[357167068,1743847846491,-150.0,0.00035558,2]
[357167069,1743847846501,-150.0,0.0003556,2]
[357167070,1743847846510,-150.0,0.00035572,2]
[357167071,1743847846520,-150.0,0.00035616,2]
[357167072,1743847846529,-150.0,0.00035618,2]
[357167073,1743847846539,-150.0,0.00035703,2]
[357167074,1743847846549,-150.0,0.00035706,2]
[357167075,1743847846559,-150.0,0.0003572,2]
[357167076,1743847846568,-150.0,0.00035729,2]
[357167077,1743847846578,-150.0,0.00035751,2]
[357167079,1743847846587,-150.0,0.00035775,2]
[357167081,1743847846597,-150.0,0.00035778,2]
[357167083,1743847846606,-150.0,0.00035782,2]
[357167085,1743847846616,-150.0,0.00035817,2]
[357167087,1743847846626,-150.0,0.00035818,2]
[357167089,1743847846635,-150.0,0.0003582,2]
[357167091,1743847846645,-150.0,0.00035829,2]
[357167093,1743847846654,-150.0,0.00035861,2]
[357167095,1743847846663,-1411.59103439,0.0003587,2]
[357167097,1743847846672,-151.0,0.0003587,7]
[357167099,1743847846682,-637.885301,0.0003587,7]
[357167101,1743847846691,-637.885301,0.0003587,7]
[357167103,1743847846701,-155.01198,0.0003587,7]
[357167105,1743847846710,-155.01198,0.0003587,7]
[357167107,1743847846719,-150.0,0.00035876,2]
[357167109,1743847846729,-4841.91,0.000359,2]
[357167110,1743847846739,-152.16,0.000359,31]
[357167113,1743847846748,-152.16,0.000359,31]
[357167116,1743847846758,-152.16,0.000359,31]
[357167119,1743847846767,-152.16,0.000359,31]
[357167120,1743847846777,-152.16,0.000359,31]
[357167122,1743847846786,-150.0,0.00035905,2]
[357167124,1743847846796,-150.0,0.00035907,2]
[357167126,1743847846806,-2000.0,0.00035911,3]
[357167128,1743847846815,-2000.0,0.00035911,3]
[357167130,1743847846825,-150.0,0.00035915,2]
[357167132,1743847846835,-150.0,0.00035918,2]
[357167135,1743847846844,-1000.0,0.00035919,7]
[357167136,1743847846854,-150.0,0.00035924,2]
[357167139,1743847846863,-150.0,0.00035934,2]
[357167140,1743847846873,-150.0,0.00035938,2]
[357167143,1743847846883,-150.0,0.00035948,2]
[357167145,1743847846892,-150.0,0.00035951,2]
[357167146,1743847846902,-2000.0,0.00035953,3]
[357167148,1743847846911,-937.2569,0.00035953,3]
[357167150,1743847846920,-2000.0,0.00035953,3]
[357167152,1743847846930,-150.0,0.00035964,2]
[357167154,1743847846940,-1591.3282623,0.00035975,2]
[357167156,1743847846949,-16352.1268251,0.0003599,2]
[357167158,1743847846963,-557.06809181,0.00036,2]
[357167160,1743847846972,-12767.84864087,0.00036,7]
[357167162,1743847846981,-300.0,0.00036,2]
[357167164,1743847846990,-412.0,0.00036,120]
[357167166,1743847846999,-622.778856,0.00036,7]
[357167168,1743847847008,-622.778856,0.00036,7]
[357167170,1743847847017,-2088.4,0.00036002,2]
[357167173,1743847847027,-150.0,0.00036007,2]
[357167175,1743847847037,-150.0,0.00036016,2]
[357167176,1743847847048,-150.0,0.00036021,2]
[357167177,1743847847059,-150.0,0.00036031,2]
[357167178,1743847847070,-150.0,0.00036039,2]
[357167179,1743847847080,-150.0,0.00036064,2]
[357167180,1743847847089,-1000.0,0.0003607,2]
[357167181,1743847847099,-1000.0,0.0003607,2]
[357167182,1743847847108,-1000.0,0.0003607,2]
[357167183,1743847847117,-1000.0,0.0003607,2]
[357167184,1743847847127,-1000.0,0.0003607,2]
[357167185,1743847847137,-1965.19586004,0.00036078,30]
[357167186,1743847847146,-336.0,0.00036082,5]
[357167187,1743847847155,-150.0,0.00036087,2]
[357167188,1743847847164,-150.0,0.00036089,2]
[357167189,1743847847173,-150.0,0.00036097,2]
[357167190,1743847847184,-1210.16,0.000361,2]
[357167191,1743847847194,-2632.8426731,0.00036105,2]
[357167192,1743847847203,-248.0813093,0.00036105,2]
[357167193,1743847847212,-248.0813093,0.00036105,2]
[357167194,1743847847222,-843.4272309,0.00036105,2]
[357167195,1743847847231,-843.4272309,0.00036105,2]
[357167196,1743847847329,-1591.3282623,0.00036105,2]
[357167197,1743847847339,-1999.5381221,0.00036105,2]
[357167198,1743847847348,-16352.1268251,0.0003612,2]
[357167199,1743847847359,-168.09,0.00036125,2]
[357167200,1743847847367,-500.0,0.00036129,2]
[357167201,1743847847378,-150.0,0.0003613,2]
[357167202,1743847847390,-1210.0,0.0003613,2]
[357167203,1743847847400,-5005.86010944,0.0003613,2]
[357167204,1743847847410,-4997.39223965,0.0003613,2]
[357167205,1743847847420,-14741.31941579,0.0003613,2]
[357167206,1743847847430,-10041.2503887,0.0003613,2]
[357167207,1743847847440,-209318.96944134,0.0003613,2]
[357167208,1743847847449,-150.80282973,0.0003613,2]
[357167209,1743847847459,-248.3015448,0.0003613,2]
[357167210,1743847847469,-163.87116022,0.0003613,2]
[357167211,1743847847478,-1257.51029905,0.0003613,2]
[357167212,1743847847487,-7693.78166628,0.0003613,2]
[357167213,1743847847497,-1037.97819149,0.0003613,2]
[357167214,1743847847506,-592.81220406,0.0003613,2]
[357167215,1743847847515,-9208.55181925,0.0003613,2]
[357167216,1743847847525,-1307.24054171,0.0003613,2]
[357167217,1743847847536,-3409.46811489,0.0003613,2]
[357167218,1743847847545,-39544.24004446,0.0003613,2]
[357167219,1743847847554,-10217.90454904,0.0003613,2]
[357167220,1743847847563,-1914.87614281,0.0003613,2]
[357167221,1743847847572,-183.45153403,0.0003613,2]
[357167222,1743847847582,-643.0,0.0003613,2]
[357167223,1743847847592,-967.05596464,0.0003613,2]
[357167224,1743847847602,-4237.26325026,0.0003613,2]
[357167225,1743847847611,-937.37297641,0.0003613,2]
[357167226,1743847847620,-13131.82943832,0.0003613,2]
[357167227,1743847847629,-234.48079196,0.0003613,2]
[357167228,1743847847638,-561.56324297,0.0003613,2]
[357167229,1743847847649,-150.0,0.0003613,2]
[357167230,1743847847659,-7752.8541411,0.0003613,2]
[357167231,1743847847668,-605.38247478,0.0003613,2]
[357167232,1743847847678,-624.53286689,0.0003613,2]
[357167233,1743847847687,-214.09488434,0.0003613,2]
[357167234,1743847847697,-41524.64996169,0.0003613,2]
[357167235,1743847847707,-8115.19607885,0.0003613,2]
[357167236,1743847847716,-229.05009767,0.0003613,2]
[357167237,1743847847725,-123228.20490204,0.0003613,7]
[357167238,1743847847735,-248.13124453,0.0003613,2]
[357167239,1743847847745,-10021.29056559,0.0003613,2]
[357167240,1743847847754,-562.26928886,0.0003613,2]
[357167241,1743847847763,-17128.49678539,0.0003613,2]
[357167242,1743847847772,-3131.01669769,0.0003613,15]
[357167243,1743847847783,-1023.51004971,0.0003613,2]
[357167244,1743847847792,-373.88640895,0.0003613,2]
[357167245,1743847847801,-1000.0,0.0003613,2]
[357167246,1743847847810,-1000.0,0.0003613,2]
[357167247,1743847847819,-1000.0,0.0003613,2]
[357167248,1743847847828,-1000.0,0.0003613,2]
[357167249,1743847847838,-1000.0,0.0003613,2]
[357167250,1743847847847,-1000.0,0.0003613,2]
[357167251,1743847847856,-1000.0,0.0003613,2]
[357167252,1743847847866,-1000.0,0.0003613,2]
[357167253,1743847847875,-1000.0,0.0003613,2]
[357167254,1743847847884,-1000.0,0.0003613,2]
[357167255,1743847847893,-151.1405253,0.0003613,2]
[357167256,1743847847902,-389.18954311,0.0003613,2]
[357167257,1743847847911,-78519.09893128,0.0003613,2]
[357167258,1743847847921,-10524.19113968,0.0003613,2]
[357167259,1743847847930,-1600.62142149,0.0003613,2]
[357167260,1743847847939,-1420.33464332,0.0003613,20]
[357167261,1743847847949,-562.0060223,0.0003613,5]
[357167262,1743847847958,-542.125284,0.0003613,7]
[357167263,1743847847967,-542.125284,0.0003613,7]
[357167264,1743847847977,-542.125284,0.0003613,7]
[357167265,1743847847991,-542.125285,0.0003613,7]
[357167266,1743847848000,-12630.0,0.0003613,30]
[357167267,1743847848010,-151.0,0.0003613,7]
[357167268,1743847848019,-151.0,0.0003613,7]
[357167269,1743847848029,-622.778856,0.0003613,7]
[357167270,1743847848038,-622.778847,0.0003613,7]
[357167271,1743847848047,-151.0,0.0003613,7]
[357167272,1743847848056,-637.885301,0.0003613,7]
[357167273,1743847848066,-637.885294,0.0003613,7]
[357167274,1743847848075,-155.01198,0.0003613,7]
[357167275,1743847848084,-155.011982,0.0003613,7]
[357167276,1743847848097,-174.227254,0.0003613,7]
[357167277,1743847848107,-174.227261,0.0003613,7]
[357167278,1743847848116,-150.0,0.00036397,3]
[357167279,1743847848125,-150.0,0.00036397,3]
[357167280,1743847848134,-150.0,0.00036397,3]
[357167281,1743847848143,-16352.1268251,0.0003649,3]
[357167282,1743847848152,-30000.0,0.000365,5]
[357167283,1743847848161,-1000.0,0.0003653,2]
[357167284,1743847848170,-150.0,0.00036554,2]
[357167285,1743847848179,-9819.42540923,0.000366,2]
[357167286,1743847848189,-10580.8622423,0.00036622,2]
[357167287,1743847848198,-170.55,0.00036632,2]
[357167288,1743847848208,-16352.1268251,0.00036638,3]
[357167289,1743847848217,-444.9,0.00036648,2]
[357167290,1743847848226,-784.33,0.00036648,2]
[357167291,1743847848236,-784.33,0.00036648,2]
[357167292,1743847848245,-444.9,0.00036648,2]
[357167293,1743847848254,-784.33,0.00036648,2]
[357167294,1743847848263,-444.9,0.00036648,2]
[357167295,1743847848273,-444.9,0.00036648,2]
[357167296,1743847848283,-784.33,0.00036648,2]
[357167297,1743847848292,-784.33,0.00036648,2]
[357167298,1743847848301,-444.9,0.00036648,2]
[357167299,1743847848310,-444.9,0.00036648,2]
[357167300,1743847848320,-784.33,0.00036648,2]
[357167301,1743847848329,-444.9,0.00036648,2]
[357167302,1743847848338,-784.33,0.00036648,2]
[357167303,1743847848347,-444.9,0.00036648,2]
[357167304,1743847848356,-784.33,0.00036648,2]
[357167305,1743847848365,-444.9,0.00036648,2]
[357167306,1743847848375,-444.9,0.00036648,2]
[357167307,1743847848384,-441.71,0.00036648,2]
[357167308,1743847848398,-779.56,0.00036651,2]
[357167309,1743847848407,-210.0,0.0003666,2]
[357167310,1743847848416,-9475.64,0.000367,3]
[357167311,1743847848426,-13979.12962454,0.00036723,2]
[357167312,1743847848435,-154.71952391,0.00036941,2]
[357167313,1743847848444,-150.0,0.00036999,3]
[357167314,1743847848454,-65034.13679914,0.00037,2]
[357167315,1743847848463,-650.0,0.00037,2]
[357167316,1743847848473,-2000.0,0.00037254,5]
[357167317,1743847848483,-404.73,0.00037323,2]
[357167318,1743847848492,-150.0,0.00037386,2]
[357167319,1743847848502,-150.0,0.00037491,2]
[357167320,1743847848511,-4185.36516485,0.0003759,2]
[357167321,1743847848520,-150.0,0.00037607,2]
[357167322,1743847848529,-347.09,0.00037607,2]
[357167323,1743847848538,-306.93,0.00037607,2]
[357167324,1743847848548,-150.0,0.0003761,2]
[357167325,1743847848558,-166.49,0.0003761,2]
[357167326,1743847848567,-150.0,0.0003761,2]
[357167327,1743847848577,-928.19,0.0003761,2]
[357167328,1743847848586,-150.0,0.0003761,2]
[357167329,1743847848595,-150.0,0.0003761,2]
[357167330,1743847848604,-698.7,0.0003761,2]
[357167331,1743847848614,-150.0,0.0003761,2]
[357167332,1743847848623,-150.0,0.0003761,2]
[357167333,1743847848632,-167.63513931,0.000378,2]
[357167334,1743847848642,-1000.0,0.00037804,5]
[357167335,1743847848651,-772.23,0.00037858,2]
[357167336,1743847848660,-210.0,0.000379,2]
[357167337,1743847848671,-300.0,0.00038,2]
[357167338,1743847848680,-2088.4,0.00038266,2]